Cogmind - Beta 9.6 @@@ ROGUE MODE // 2020.07.28 @ 14:35:11 Player: MuffinMan&Dog Result: Self-destructed Performance ------------- Evolutions (1) 500 Regions Visited (2) 400 Robots Destroyed (4) 20 Value Destroyed (101) 101 Prototype IDs (0) 0 Alien Tech Used (0) 0 Bonus (0) 0 TOTAL SCORE: 1021 Bonus ------- None Cogmind --------- Core Integrity 323/400 Matter 2/300 Energy 100/100 System Corruption 0% Temperature Cool (0) Movement Rolling (100) Location -9/Materials Parts ------- > --- POWER (2) -------- (None) > --- PROPULSION (2) --- Compact Wheel Compact Wheel > --- UTILITY (2) ------ Medium Armor Plating > --- WEAPON (3) ------- Assault Rifle > --- INVENTORY (4) ---- Compact Wheel Compact Wheel Medium Battery (200) Spread Laser Peak State ------------ > --- POWER ------------ (None) > --- PROPULSION ------- Compact Wheel Compact Wheel > --- UTILITY ---------- Small Storage Unit Medium Armor Plating > --- WEAPON ----------- Spread Laser Spread Laser > --- INVENTORY -------- Compact Wheel Compact Wheel Light Armor Plating Assault Rifle Light Assault Rifle Grenade Launcher [Rating: 9] Favorites ----------- Power None Propulsion Light Treads Treads Light Treads Wheel Compact Wheel Utility Small Storage Unit Storage Small Storage Unit Protection Light Armor Plating Weapon Light Assault Rifle Energy Gun Spread Laser Ballistic Gun Light Assault Rifle Launcher Grenade Launcher Special Weapon Mining Laser Build | -11 -10 -9 ------- Run | Scr Mat Mat Slots Evolved 2 | . . 2 Power 1 | . . 1 Propulsion . | . . . Utility . | . . . Weapon 1 | . . 1 Parts Attached 26 | 5 19 2 Power . | . . . Engine . | . . . Core . | . . . Reactor . | . . . Propulsion 4 | 2 2 . Treads 2 | 2 . . Leg . | . . . Wheel 2 | . 2 . Hover . | . . . Flight . | . . . Utility 6 | 1 5 . Device . | . . . Storage 2 | 1 1 . Processor . | . . . Hackware . | . . . Protection 4 | . 4 . Artifact . | . . . Weapon 16 | 2 12 2 Energy Gun 4 | . 3 1 Energy Cannon . | . . . Ballistic Gun 7 | 2 4 1 Ballistic Cannon . | . . . Launcher 1 | . 1 . Special Weapon 4 | . 4 . Impact Weapon . | . . . Slashing Weapon . | . . . Piercing Weapon . | . . . Special Melee Weapon . | . . . Unidentified Prototypes . | . . . Parts Lost 3 | . 2 1 Power . | . . . Propulsion . | . . . Utility . | . . . Weapon 3 | . 2 1 Highest Loss Streak 1 | . 1 1 Average Slot Usage (%) 80 | . 81 72 Treads 16 | . 20 . Wheel 10 | . 7 22 Storage 13 | . 14 11 Protection 11 | . 11 11 Energy Gun 2 | . 2 . Ballistic Gun 12 | . 11 20 Launcher 2 | . 1 8 Special Weapon 9 | . 11 . Naked Turns . | . . . Heaviest Build 17 | 7 17 17 Greatest Support 40 | 40 40 32 Greatest Overweight (x) . | . . . Average Overweight (x) . | . . . Largest Inventory Capacity 6 | 6 6 6 Average Capacity 5 | 5 6 5 Most Carried 6 | 3 6 6 Average Carried 3 | 1 3 4 Final Capacity 6 | 6 6 4 Final Carried 6 | 2 6 4 Class Distribution -------------------- 88% | Mutant 11% | Tank Dominant Class ---------------- Mutant | -10/Materials Tank | -9/Materials Resources | -11 -10 -9 ----------- Run | Scr Mat Mat Matter Collected 207 | 184 . 23 Remotely . | . . . Salvage Created 78 | . 55 23 Parts 10 | . 3 7 Haulers Intercepted . | . . . Recyclers Shooed . | . . . Parts Field Recycled . | . . . Retrieved Matter . | . . . Parts Self-Destructed . | . . . Prevented . | . . . Kills | -11 -10 -9 ------- Run | Scr Mat Mat Combat Hostiles Destroyed 4 | . 2 2 Guns 2 | . . 2 Cannons 1 | . 1 . AOE 1 | . 1 . Classes Destroyed 2 | . 1 1 Swarmer 2 | . . 2 Grunt 2 | . 2 . Best Kill Streak 2 | . 2 2 Combat Bots Only 2 | . 2 2 Max Kills in Single Turn 1 | . 1 1 Gunslinging . | . . . Exploded 1 | . 1 . Melee . | . . . Uniques/NPCs Destroyed . | . . . Combat | -11 -10 -9 -------- Run | Scr Mat Mat Damage Taken 676 | . 345 331 Core 131 | . 54 77 Absorbed by Shields . | . . . Core Remaining (%) 89 | 100 78 . Volleys Fired 25 | . 16 9 Largest 3 | . 2 3 Hottest 200 | . 200 70 Shots Fired 37 | . 19 18 Gun 32 | . 15 17 Cannon . | . . . Launcher 1 | . . 1 Special 4 | . 4 . Kinetic 32 | . 15 17 Thermal 4 | . 4 . Explosive 1 | . . 1 Electromagnetic . | . . . Robot Hit Streak 7 | . 6 7 Robot Miss Streak 3 | . 3 2 Penetration Max . | . . . Secondary Targets 2 | . . 2 Max Gunslinging Chain 1 | . . 1 Shots Hit Robots 21 | . 11 10 Core Hits 7 | . 4 3 Critical Hits . | . . . Critical Kills . | . . . Critical Parts Destroyed . | . . . Melee Attacks . | . . . Impact . | . . . Slashing . | . . . Piercing . | . . . Sneak Attacks . | . . . Combat Hostiles . | . . . Follow-up Attacks . | . . . Damage Inflicted 213 | . 120 93 Guns 165 | . 72 93 Cannons . | . . . Explosions . | . . . Melee . | . . . Ramming . | . . . Kinetic 165 | . 72 93 Thermal 48 | . 48 . Explosive . | . . . Electromagnetic . | . . . Impact . | . . . Slashing . | . . . Piercing . | . . . Highest Corruption . | . . . Average Corruption . | . . . Corruption Purged . | . . . Overload Shots . | . . . Overflow Damage 4 | . 4 . Projectiles 4 | . 4 . Explosions . | . . . Melee . | . . . Knockbacks . | . . . Impact . | . . . Kinetic . | . . . Secondary . | . . . Self-Inflicted Damage . | . . . Shots . | . . . Rammed . | . . . Targets Rammed . | . . . Kicked . | . . . Crushed . | . . . Highest Temperature 42 | . 42 7 Average Temperature 14 | . 17 4 Received Heat Transfer 204 | . 117 87 Siege Activations . | . . . Robots Corrupted . | . . . Combat Hostiles . | . . . Parts Fried . | . . . Impact Corruptions . | . . . Robots Melted . | . . . Combat Hostiles . | . . . Parts Melted . | . . . Heat Transferred 100 | . 100 . Parts Sabotaged . | . . . Parts Stolen . | . . . Parts Stripped . | . . . Power Chain Reactions . | . . . Missiles Intercepted . | . . . Alert | -11 -10 -9 ------- Run | Scr Mat Mat Peak Influence 70 | . 70 70 Average Influence 22 | . 27 28 Maximum Alert Level . | . . . Low Security (%) 100 | 100 100 100 Level 1 . | . . . Level 2 . | . . . Level 3 . | . . . Level 4 . | . . . Level 5 . | . . . High Security . | . . . Max Security . | . . . Squads Dispatched . | . . . Investigation . | . . . Extermination . | . . . Reinforcement . | . . . Assault . | . . . Garrison . | . . . Intercept . | . . . Construction Impeded . | . . . Haulers Reinforced . | . . . Stealth | -11 -10 -9 --------- Run | Scr Mat Mat Distress Signals . | . . . Communications Jammed . | . . . Distress Signals . | . . . Times Spotted 15 | . 9 6 Peak Tracking Total 4 | . 4 4 Tactical Retreats . | . . . Traps | -11 -10 -9 ------- Run | Scr Mat Mat Traps Triggered 2 | . 2 . Indirectly . | . . . Trap Hack Attempts . | . . . Triggered . | . . . Disarmed . | . . . Reprogrammed . | . . . Reused . | . . . Traps Extracted . | . . . Installed . | . . . Triggered . | . . . Machines | -11 -10 -9 ---------- Run | Scr Mat Mat Machines Disabled . | . . . Max in Single Turn . | . . . Machines Sabotaged . | . . . Garrisons Compromised . | . . . Overloaded Fab Kills . | . . . Fab Network Shutdowns . | . . . Hacking | -11 -10 -9 --------- Run | Scr Mat Mat Machines Accessed 1 | . 1 . Terminals . | . . . Fabricators . | . . . Repair Stations 1 | . 1 . Recycling Units . | . . . Scanalyzers . | . . . Garrison Access . | . . . Total Hacks 1 | . 1 . Successful . | . . . Failed 1 | . 1 . Catastrophic . | . . . Database Lockouts . | . . . Manual . | . . . Terminals . | . . . Fabricators . | . . . Repair Stations 1 | . 1 . Recycling Units . | . . . Scanalyzers . | . . . Garrison Access . | . . . Terminal Hacks . | . . . Fabricator Hacks . | . . . Repair Station Hacks . | . . . Recycling Unit Hacks . | . . . Scanalyzer . | . . . Garrison Access Hacks . | . . . Unauthorized Hacks . | . . . Terminals . | . . . Fabricators . | . . . Repair Stations . | . . . Recycling Units . | . . . Scanalyzers . | . . . Garrison Access . | . . . Data Cores Recovered . | . . . Used . | . . . Hacking Detections 1 | . 1 . Full Trace Events . | . . . Feedback Events . | . . . Feedback Blocked . | . . . Robot Schematics Acquired . | . . . Robots Built . | . . . Matter . | . . . Time . | . . . Total Robot Build Rating . | . . . Part Schematics Acquired . | . . . Parts Built . | . . . Matter . | . . . Time . | . . . Total Part Build Rating . | . . . Parts Repaired . | . . . Time . | . . . Parts Recycled . | . . . Recycled Matter . | . . . Retrieved Matter . | . . . Retrieved Components . | . . . Parts Scanalyzed . | . . . Part Schematics Acquired . | . . . Parts Damaged . | . . . Bothacking | -11 -10 -9 ------------ Run | Scr Mat Mat Used RIF Installer . | . . . Robots Hacked . | . . . Non-combat . | . . . Combat . | . . . Robot Hacks Applied . | . . . Relay Couplers Released . | . . . Robots Rewired . | . . . Allies Hacked . | . . . Hacks Repelled . | . . . Allies | -11 -10 -9 -------- Run | Scr Mat Mat Total Allies . | . . . Largest Group . | . . . Highest-Rated Group . | . . . Highest-Rated Ally . | . . . Total Orders . | . . . Ally Attacks . | . . . Total Damage . | . . . Kills . | . . . Allies Corrupted . | . . . Allies Melted . | . . . Intel | -11 -10 -9 ------- Run | Scr Mat Mat Robot Analysis Total . | . . . Derelict Logs Recovered . | . . . Drone Launches . | . . . Drone Recoveries . | . . . Exploration | -11 -10 -9 ------------- Run | Scr Mat Mat Turns Passed 632 | 115 440 77 Spaces Moved 377 | 71 258 48 Core 9 | 9 . . Treads 219 | 62 157 . Legs . | . . . Wheels 149 | . 101 48 Hover . | . . . Flight . | . . . Fastest Speed 50 | 50 100 100 Average Speed 133 | 146 136 100 Slowest Speed 160 | 160 160 100 Overloaded Moves . | . . . Propulsion Burnouts . | . . . Robots Hopped . | . . . Cave-ins Triggered . | . . . Exploration Rate (%) 16 | 4 39 7 Regions Visited 2 Branch Regions . Pre-discovered Areas . | . . . Known Exits Taken . | . . . Unknown Exits Taken 2 | 1 1 . Scrap Searched . | . . . Spaces Dug . | . . . Terrain Destroyed 6 | . . 6 Melee . | . . . Projectile . | . . . AOE 6 | . . 6 Actions | -11 -10 -9 --------- Run | Scr Mat Mat Total 463 | 82 319 62 Wait . | . . . Move 375 | 70 257 48 Hop . | . . . Pick Up 24 | 7 17 . Fast Attach . | . . . Attach 11 | 5 4 2 Detach 1 | . . 1 Swap 15 | . 15 . Drop 12 | . 10 2 Fire 25 | . 16 9 Melee . | . . . Ram . | . . . Kick . | . . . Crush . | . . . Escape Stasis . | . . . Rewire . | . . . Trap . | . . . Miscellaneous . | . . . Route ------- -11/Scrapyard -10/Materials -9/Materials History --------- Turn | Location | Event 50 | -11/Scrapyard | Discovered new exit (range 16) 116 | -11/Scrapyard | Entered Materials 302 | -10/Materials | Build established: Mutant 518 | -10/Materials | Discovered new exit (range 13) 556 | -10/Materials | Entered another Materials area 556 | -9/Materials | Evolved 2 slots: Power x1, Weapon x1 633 | -9/Materials | Self-destructed Last Messages --------------- 00615_ K-01 Serf collects debris. 00617_ Acquired 11 matter. 00618_ U-05 Engineer lays Concrete. 00619_ K-01 Serf collects debris. 00619_ Dropped Grenade Launcher. 00619_ K-01 Serf collects debris. 00619_ U-05 Engineer lays Concrete. 00621_ K-01 Serf collects debris. 00622_ U-05 Engineer lays Concrete. 00623_ K-01 Serf collects debris. 00623_ U-05 Engineer lays Concrete. 00625_ K-01 Serf collects debris. 00626_ Lgt. Assault Rifle destroyed. 00626_ U-05 Engineer lays Concrete. 00627_ K-01 Serf collects debris. 00627_ U-05 Engineer lays Concrete. 00628_ K-01 Serf collects debris. 00629_ U-05 Engineer builds a Door. 00630_ Dropped Sml. Storage Unit. 00631_ K-01 Serf collects debris. Map ----- +----------------------------------------------------+ | ????????????????????# #???????????? | | ????????????????????# #???????????? | | ???????????????????## ##??????????? | | ???????????????????# ########???? | | ???????????????????# #???? | | ???????????????????# #???? | | ???????????????????# #???? | | ???????????????????# ########???? | | ???????????????????# #####??????????? | | ???????????????????# #??????????????? | | ???????????????????# #??????????????? | | ???????????????????# #??????????????? | | ???????????????????# #??#######?????? | | ???????????????????# #?# #?????? | | ???????????????????# #?# #?????? | | ???????????????????# #?# #?????? | | ?????????########### #?# #?????? | | ?????????# # ### #?????? | | ?????????# ** # # #?????? | | ?????????# ! *! + #?????? | | ?????????# *! # k #?????? | | ?????????#! #?????? | | ?????????# # #?????? | | ?????????# ! # k #?????? | | ?????????# ? u# ! #?????? | | ???????????????????#=[ s]@ #?????? | | ???????????????????#==Y########?????? | | ???????????????????#* [#????????????? | | ??????????????# = ?????????? | | ????????? +?????? | | ????????####### #?????? | | ??????????????## ######## #?????? | | ???????????????#?????????# ##?????? | | ?????????????????????????? #??????? | | ??????????????????????????? #??????? | | ??????????????????????????? #??????? | | ???????????????????????????? #??????? | | ?????????????????????????????#??????? | | ????????????????????????????????????? | | ????????????????????????????????????? | | ????????????????????????????????????? | | ????????????????????????????????????? | | ????????????????????????????????????? | | ????????????????????????????????????? | | ????????????????????????????????????? | | ????????????????????????????????????? | | ????????????????????????????????????? | | ????????????????????????????????????? | | ????????????????????????????????????? | | ????????????????????????????????????? | +----------------------------------------------------+ Best States ------------- Heat Dissipation 28 Energy Generation 5 Energy Capacity 100 Matter Stores 234 Matter Capacity 300 Sight Range 16 Terrain Scan Density 10 Armor Coverage 225 Evasion (%) 40 Recoil Reduction 2 Item Schematics ----------------- None Robot Schematics ------------------ None Fabricated ------------ Nothing Alien Tech Used ----------------- None Achievements -------------- Let's See Who's Tougher Challenges ------------ None Game ------ Seed PrecisionPortableInterrupter Manual? 0 Play Time 00:16:20 Cumulative 4.9 hours Start 2020.07.28 @ 14:10:10 End 2020.07.28 @ 14:35:11 Sessions 1 Manual Loads 0 Difficulty Rogue Special Mode None Game No. 4 Rogue 4 Adventurer 0 Explorer 0 Win Type - Total 0 Types 0/0/0/0/0/0/0 Lore% 3 Gallery% 8 Achievement% 8 Wizard Run 0 Options --------- ASCII 0 Keyboard 0 Movement Arrows Keybinds 0 Fullscreen 1 Font 18/SmallcapsGlow Map View 76x50 Tactical HUD 1 Map Filters NONE Filters NONE Steam 1 RUN: 74194d03-801a-4e4e-a898-3001fe80aa30